Cogmind - Beta 11.1 @@@ ROGUE MODE // 2022.09.14 @ 19:32:18 Player: Flerik Result: Destroyed by S-10 Pest with Light Assault Rifle Performance ------------- Evolutions (0) 0 Regions Visited (2) 400 Robots Destroyed (13) 65 Value Destroyed (239) 239 Prototype IDs (0) 0 Alien Tech Used (0) 0 Bonus (0) 0 TOTAL SCORE: 704 Bonus ------- None Cogmind --------- Core Integrity 0/250 Matter 300/300 Energy 100/100 System Corruption 6% Temperature Cool (0) Movement Core (100) Ox1 Location -10/Mines Parts ------- > --- POWER (1) -------- (None) > --- PROPULSION (2) --- (None) > --- UTILITY (2) ------ Small Storage Unit Core Shielding > --- WEAPON (2) ------- (None) > --- INVENTORY (8) ---- Light Ion Engine Aluminum Leg Seismic Detector Tractor Beam Small Laser Small Laser Light Assault Rifle Mining Laser Peak State ------------ > --- POWER ------------ Light Nuclear Core > --- PROPULSION ------- Aluminum Leg > --- UTILITY ---------- Small Storage Unit Core Shielding > --- WEAPON ----------- EM Pulse Gun Assault Rifle > --- INVENTORY -------- Light Ion Engine Aluminum Leg Seismic Detector Tractor Beam Small Laser Small Laser Light Assault Rifle Mining Laser [Rating: 8] Favorites ----------- Power Ion Engine Engine Ion Engine Power Core Light Nuclear Core Propulsion Aluminum Leg Leg Aluminum Leg Utility Small Storage Unit Device Seismic Detector Storage Small Storage Unit Protection Core Shielding Weapon Assault Rifle Energy Gun EM Pulse Gun Ballistic Gun Assault Rifle Build | -11 -10 -10 ------- Run | Scr Mat Min Slots Evolved . | . . . Power . | . . . Propulsion . | . . . Utility . | . . . Weapon . | . . . Parts Attached 13 | 7 5 1 Power 3 | 1 1 1 Engine 2 | 1 1 . Core 1 | . . 1 Reactor . | . . . Propulsion 4 | 2 2 . Treads . | . . . Leg 4 | 2 2 . Wheel . | . . . Hover . | . . . Flight . | . . . Utility 3 | 2 1 . Device 1 | 1 . . Storage 1 | 1 . . Processor . | . . . Hackware . | . . . Protection 1 | . 1 . Artifact . | . . . Weapon 3 | 2 1 . Energy Gun 2 | 1 1 . Energy Cannon . | . . . Ballistic Gun 1 | 1 . . Ballistic Cannon . | . . . Launcher . | . . . Special Weapon . | . . . Impact Weapon . | . . . Slashing Weapon . | . . . Piercing Weapon . | . . . Special Melee Weapon . | . . . Unidentified Prototypes . | . . . Parts Lost 5 | . 1 4 Power 1 | . . 1 Propulsion 1 | . . 1 Utility . | . . . Weapon 3 | . 1 2 Highest Loss Streak 3 | . 1 3 To Critical Strikes . | . . . Average Slot Usage (%) 91 | . 96 74 Engine 11 | . 13 3 Core 2 | . . 8 Leg 24 | . 28 14 Device 2 | . 3 . Storage 14 | . 14 14 Protection 11 | . 10 14 Energy Gun 10 | . 11 5 Ballistic Gun 14 | . 14 14 Naked Turns . | . . . Heaviest Build 15 | 15 15 15 Greatest Support 20 | 20 20 20 Greatest Overweight (x) 2 | . . 2 Average Overweight (x) . | . . . Largest Inventory Capacity 8 | 8 8 8 Average Capacity 7 | 7 8 8 Most Carried 8 | 3 8 8 Average Carried 4 | 1 5 8 Final Capacity 8 | 8 8 8 Final Carried 8 | 3 8 8 Class Distribution -------------------- 100% | Mutant Dominant Class ---------------- Mutant | -10/Materials Mutant | -10/Mines Resources | -11 -10 -10 ----------- Run | Scr Mat Min Matter Collected 389 | 270 81 38 Remotely . | . . . Salvage Created 488 | 237 118 133 Parts 34 | 23 4 7 Haulers Intercepted . | . . . Recyclers Shooed . | . . . Parts Field Recycled . | . . . Retrieved Matter . | . . . Parts Self-Destructed . | . . . Prevented . | . . . Kills | -11 -10 -10 ------- Run | Scr Mat Min Combat Hostiles Destroyed 7 | . 3 4 Guns 7 | . 3 4 Classes Destroyed 5 | 3 1 1 Worker 2 | 2 . . Tunneler 5 | 5 . . Recycler 1 | 1 . . Grunt 5 | . 3 2 Assembled 2 | . . 2 Best Kill Streak 7 | 7 2 2 Combat Bots Only 2 | . 2 2 Max Kills in Single Turn 1 | 1 1 1 Gunslinging . | . . . Exploded . | . . . Melee . | . . . Uniques/NPCs Destroyed . | . . . Combat | -11 -10 -10 -------- Run | Scr Mat Min Damage Taken 877 | . 409 468 Core 252 | . 126 126 Absorbed by Shields . | . . . Redirected to Shielding 49 | . 22 27 Core Remaining (%) 100 | 100 . . Volleys Fired 43 | 19 12 12 Largest 2 | 1 2 2 Hottest 60 | 40 60 60 Shots Fired 55 | 19 18 18 Gun 55 | 19 18 18 Cannon . | . . . Launcher . | . . . Special . | . . . Kinetic 24 | . 12 12 Thermal . | . . . Explosive . | . . . Electromagnetic 31 | 19 6 6 Robot Hit Streak 7 | 5 7 7 Robot Miss Streak 3 | 2 2 3 Penetration Max . | . . . Secondary Targets 1 | . . 1 Max Gunslinging Chain 1 | . . 1 Shots Hit Robots 38 | 13 13 12 Core Hits 22 | 8 5 9 Critical Kills . | . . . Critical Parts Destroyed . | . . . Critical Strikes . | . . . Melee Attacks . | . . . Impact . | . . . Slashing . | . . . Piercing . | . . . Sneak Attacks . | . . . Combat Hostiles . | . . . Follow-up Attacks . | . . . Damage Inflicted 506 | 170 184 152 Guns 506 | 170 184 152 Cannons . | . . . Explosions . | . . . Melee . | . . . Ramming . | . . . Kinetic 225 | . 124 101 Thermal . | . . . Explosive . | . . . Electromagnetic 281 | 170 60 51 Impact . | . . . Slashing . | . . . Piercing . | . . . Highest Corruption 6 | . 4 6 Average Corruption 4 | . 3 5 Corruption Purged . | . . . Corruption Blocked . | . . . Effects 5 | . 2 3 Message Errors 1 | . 1 . Heat Flow Errors 1 | . 1 . Energy Discharges 1 | . . 1 Parts Rejected 1 | . . 1 Alerts 1 | . . 1 Overload Shots . | . . . Overflow Damage . | . . . Projectiles . | . . . Explosions . | . . . Melee . | . . . Knockbacks . | . . . Impact . | . . . Kinetic . | . . . Secondary . | . . . Self-Inflicted Damage . | . . . Shots . | . . . Rammed . | . . . Targets Rammed . | . . . Kicked . | . . . Crushed . | . . . Highest Temperature 150 | . 150 18 Average Temperature 35 | . 50 10 Received Heat Transfer 174 | . 141 33 Siege Activations . | . . . Robots Corrupted . | . . . Combat Hostiles . | . . . Parts Fried 1 | 1 . . Impact Corruptions . | . . . Robots Melted . | . . . Combat Hostiles . | . . . Parts Melted . | . . . Heat Transferred . | . . . Parts Sabotaged . | . . . Parts Stolen . | . . . Parts Stripped . | . . . Power Chain Reactions . | . . . Missiles Intercepted . | . . . Alert | -11 -10 -10 ------- Run | Scr Mat Min Peak Influence 131 | 40 131 116 Initial 51 | . 26 51 Average 53 | 20 62 100 Maximum Alert Level . | . . . Low Security (%) 100 | 100 100 100 Level 1 . | . . . Level 2 . | . . . Level 3 . | . . . Level 4 . | . . . Level 5 . | . . . High Security . | . . . Max Security . | . . . Squads Dispatched . | . . . Investigation . | . . . Extermination . | . . . Reinforcement . | . . . Assault . | . . . Garrison . | . . . Intercept . | . . . Searches Triggered . | . . . Construction Impeded . | . . . Haulers Reinforced . | . . . Active Scanning Responses . | . . . Cargo Convoy Interrupts . | . . . Stealth | -11 -10 -10 --------- Run | Scr Mat Min Distress Signals 1 | . 1 . Communications Jammed . | . . . Distress Signals . | . . . Times Spotted 17 | . 7 10 Peak Tracking Total 5 | . 5 4 Tactical Retreats 1 | . . 1 Traps | -11 -10 -10 ------- Run | Scr Mat Min Traps Triggered 2 | . 2 . Indirectly . | . . . Trap Hack Attempts . | . . . Triggered . | . . . Disarmed . | . . . Reprogrammed . | . . . Reused . | . . . Traps Extracted . | . . . Installed . | . . . Triggered . | . . . Machines | -11 -10 -10 ---------- Run | Scr Mat Min Machines Disabled . | . . . Max in Single Turn . | . . . Machines Sabotaged . | . . . Garrisons Compromised . | . . . Overloaded Fab Kills . | . . . Hacking | -11 -10 -10 --------- Run | Scr Mat Min Machines Accessed 3 | . 3 . Terminals 3 | . 3 . Fabricators . | . . . Repair Stations . | . . . Recycling Units . | . . . Scanalyzers . | . . . Garrison Access . | . . . Total Hacks 6 | . 6 . Successful 4 | . 4 . Failed 2 | . 2 . Catastrophic . | . . . Database Lockouts . | . . . Manual 3 | . 3 . Terminals 6 | . 6 . Fabricators . | . . . Repair Stations . | . . . Recycling Units . | . . . Scanalyzers . | . . . Garrison Access . | . . . Terminal Hacks 4 | . 4 . Record 1 | . 1 . Branch Access Points 1 | . 1 . Emergency Access Points 1 | . 1 . Zone Layout 1 | . 1 . Fabricator Hacks . | . . . Repair Station Hacks . | . . . Recycling Unit Hacks . | . . . Scanalyzer . | . . . Garrison Access Hacks . | . . . Unauthorized Hacks . | . . . Terminals . | . . . Fabricators . | . . . Repair Stations . | . . . Recycling Units . | . . . Scanalyzers . | . . . Garrison Access . | . . . Data Cores Recovered . | . . . Used . | . . . Hacking Detections 2 | . 2 . Full Trace Events . | . . . Feedback Events . | . . . Feedback Blocked . | . . . Robot Schematics Acquired . | . . . Robots Built . | . . . Authchips . | . . . Time . | . . . Total Robot Build Rating . | . . . Part Schematics Acquired . | . . . Parts Built . | . . . Authchips . | . . . Time . | . . . Total Part Build Rating . | . . . Parts Repaired . | . . . Time . | . . . Parts Recycled . | . . . Recycled Matter . | . . . Retrieved Matter . | . . . Retrieved Components . | . . . Parts Scanalyzed . | . . . Part Schematics Acquired . | . . . Parts Damaged . | . . . Bothacking | -11 -10 -10 ------------ Run | Scr Mat Min Used RIF Installer . | . . . Robots Hacked . | . . . Non-combat . | . . . Combat . | . . . Robot Hacks Applied . | . . . Relay Couplers Released . | . . . Fabnet Peak Effective % . | . . . Robots Rewired . | . . . Allies Hacked . | . . . Hacks Repelled . | . . . Allies | -11 -10 -10 -------- Run | Scr Mat Min Total Allies . | . . . Largest Group . | . . . Highest-Rated Group . | . . . Highest-Rated Ally . | . . . Total Orders . | . . . Ally Attacks . | . . . Total Damage . | . . . Kills . | . . . Allies Corrupted . | . . . Allies Melted . | . . . Intel | -11 -10 -10 ------- Run | Scr Mat Min Robot Analysis Total . | . . . Derelict Logs Recovered . | . . . Drone Launches . | . . . Drone Recoveries . | . . . Exploration | -11 -10 -10 ------------- Run | Scr Mat Min Turns Passed 557 | 199 275 83 Spaces Moved 350 | 130 189 31 Core 16 | 11 . 5 Treads . | . . . Legs 334 | 119 189 26 Wheels . | . . . Hover . | . . . Flight . | . . . Fastest Speed 50 | 50 120 100 Average Speed 121 | 114 120 163 Slowest Speed 190 | 120 120 190 Overloaded Moves . | . . . Propulsion Burnouts . | . . . Robots Hopped . | . . . Cave-ins Triggered . | . . . Exploration Rate (%) 21 | 5 47 12 Regions Visited 2 Branch Regions 1 Pre-discovered Areas . | . . . Known Exits Taken 1 | . 1 . Unknown Exits Taken 1 | 1 . . Scrap Searched . | . . . Spaces Dug . | . . . Terrain Destroyed . | . . . Melee . | . . . Projectile . | . . . AOE . | . . . Terrain Rammed . | . . . Walls Destroyed . | . . . Machines Disabled . | . . . Actions | -11 -10 -10 --------- Run | Scr Mat Min Total 421 | 158 218 45 Wait 7 | . 7 . Move 348 | 129 188 31 Hop . | . . . Pick Up 6 | 3 3 . Fast Attach 11 | 7 3 1 Attach . | . . . Detach 1 | . 1 . Swap 2 | . 2 . Drop 3 | . 2 1 Fire 43 | 19 12 12 Melee . | . . . Ram . | . . . Kick . | . . . Crush . | . . . Escape Stasis . | . . . Rewire . | . . . Trap . | . . . Miscellaneous . | . . . Route ------- -11/Scrapyard -10/Materials (discovered 2 exits: [*Mat] / *Min) -10/Mines (discovered 1 exit: [*Mat]) History --------- Turn | Location | Event 8 | -11/Scrapyard | Discovered new exit (range 16) 200 | -11/Scrapyard | Entered Materials 212 | -10/Materials | Identified exit to Mines 290 | -10/Materials | Discovered new exit (range 14) 301 | -10/Materials | Build established: Mutant 427 | -10/Materials | Core integrity fell below 50% 475 | -10/Materials | Entered Mines 476 | -10/Mines | Assembled infested the area 545 | -10/Mines | Discovered new exit (range 12) 551 | -10/Mines | Core integrity fell below 20% 558 | -10/Mines | Destroyed by S-10 Pest with Light Assault Rifle Last Messages --------------- 00540_ U-05 Engineer builds a Wall. 00542_ The unstable cave ceiling collapses. 00544_ U-05 Engineer builds a Wall. 00545_ EXIT=FOUND 00545_ as-56438 destroyed. 00545_ Lgt. Nuclear Core destroyed. 00546_ U-05 Engineer lays Concrete. 00547_ U-05 Engineer builds a Wall. 00551_ U-05 Engineer lays Concrete. 00552_ The unstable cave ceiling collapses. 00552_ Aluminum Leg destroyed. 00552_ T-07 Excavator destroyed. 00552_ U-05 Engineer builds a Wall. 00554_ Assault Rifle destroyed. 00554_ U-05 Engineer destroyed. 00556_ The unstable cave ceiling collapses. 00556_ U-05 Engineer builds a Wall. 00557_ The unstable cave ceiling collapses. 00558_ System corrupted: IFF burst signal emitted. 00558_ The unstable cave ceiling collapses. Map ----- +----------------------------------------------------+ | | | | | ???????????????????????????????????????????????? | | ???????????????????????????????????????????????? | | ???????????????????????????????????????????????? | | ???????????????????????????????????????????????? | | ???????????????????????????????????????????????? | | ???????????????????????????????????????????????? | | ???????????????????????????????????????????????? | | ???????????????????????????????????????????????? | | ???????????????????????????????????????????????? | | ???????????????????????????????????????????????? | | ???????????????????????????????????????????????? | | ???????????????????????????????????????????????? | | ???????????????????????????????????????????????? | | ???????????????????????????????????????????????? | | ????????????###??????###???????????????????????? | | ???????????## #???### ???????????????????????? | | ??????????## ??## #%#####???????????????????? | | ????????### ?## *# # #???????????????????? | | ??? ???## ## # # ##???????????????????? | | ??# ### < ##u# #???????????????????? | | ??? ##??????????????????? | | ????? = d = #??????????????????? | | ??????# % % ## #?????????????? | | ??????# ## @< s??????? | | ???#### #?????????????? | | #?????????????? | | ### ## ##?????????????? | | ??????### # r #??##??##??????????????? | | ????????## ??# #??????????????????????? | | ?????????????# #??????????????????????? | | ?????????????#### #??????????????????????? | | ????????????????# = #??????????????????????? | | ????????????????#""" #??????????????????????? | | ????????????????#"" [==#??????????????????????? | | ????????????????#" %=%#??????????????????????? | | ????????????????# %* ![#??????????????????????? | | ????????????????#########??????????????????????? | | ???????????????????????????????????????????????? | | ???????????????????????????????????????????????? | | ???????????????????????????????????????????????? | | ???????????????????????????????????????????????? | | ???????????????????????????????????????????????? | | ???????????????????????????????????????????????? | | ???????????????????????????????????????????????? | | ???????????????????????????????????????????????? | | ???????????????????????????????????????????????? | | ???????????????????????????????????????????????? | | ???????????????????????????????????????????????? | +----------------------------------------------------+ Best States ------------- Heat Dissipation 25 Energy Generation 14 Energy Capacity 250 Matter Stores 300 Matter Capacity 300 Sight Range 16 Terrain Scan Density 10 Core Shielding 20 Evasion (%) 55 Item Schematics ----------------- None Robot Schematics ------------------ None Fabricated ------------ Nothing Alien Tech Used ----------------- None Achievements -------------- None Challenges ------------ None Game ------ Seed TractorGatlingMembrane Manual? 0 Play Time 00:06:23 Cumulative 23.9 hours Start 2022.09.14 @ 19:26:10 End 2022.09.14 @ 19:32:18 Sessions 1 Manual Loads 0 Difficulty Rogue Special Mode None Game No. 37 Rogue 36 Adventurer 1 Explorer 0 Win Type - Total 1 Types 1/0/0/0/0/0/0/0/0 Lore% 26 Gallery% 31 Achievement% 27 Wizard Run 0 Options --------- ASCII 0 Keyboard 0 Movement Numpad Keybinds 0 Fullscreen 1 Font 18/SmallcapsGlow Map View 76x50 Tactical HUD 1 Map Filters NONE Filters NONE Steam 1 RUN: 1cec7fd5-67b4-4956-bc95-9b08d751592a